[Event "Titled Tuesday Blitz April 26 Early 2022"]
[White "Murthy, Pappu"]
[Black "Itkis, Boris"]
[WhiteFideId "2013401"]
[BlackFideId "1209167"]
[WhiteElo "1983"]
[BlackElo "2207"]
[Result "0-1"]
[Round "06"]
[TimeControl "180+1"]
[Date "2022.04.26"]
[WhiteClock "0:00:39"]
[BlackClock "0:00:17"]

1. c4 {[%clk 0:03:00]}  e5 {[%clk 0:02:59]} 2. Nc3 {[%clk 0:03:01]}  Nf6 {[%clk 0:02:59]} 3. g3 {[%clk 0:03:00]}  d5 {[%clk 0:02:59]} 4. cxd5 {[%clk 0:02:59]}  Nxd5 {[%clk 0:03:00]} 5. Bg2 {[%clk 0:02:59]}  Nb6 {[%clk 0:03:00]} 6. Nf3 {[%clk 0:02:59]}  Nc6 {[%clk 0:03:00]} 7. O-O {[%clk 0:02:59]}  Be6 {[%clk 0:03:00]} 8. e3 {[%clk 0:02:55]}  Be7 {[%clk 0:03:00]} 9. d4 {[%clk 0:02:55]}  exd4 {[%clk 0:03:00]} 10. Nxd4 {[%clk 0:02:55]}  Nxd4 {[%clk 0:02:59]} 11. exd4 {[%clk 0:02:55]}  c6 {[%clk 0:02:59]} 12. Re1 {[%clk 0:02:52]}  O-O {[%clk 0:02:59]} 13. Be3 {[%clk 0:02:49]}  Nd5 {[%clk 0:02:42]} 14. Rc1 {[%clk 0:02:40]}  Nxe3 {[%clk 0:02:26]} 15. fxe3 {[%clk 0:02:40]}  Qb6 {[%clk 0:02:26]} 16. b3 {[%clk 0:02:37]}  Rad8 {[%clk 0:02:26]} 17. Rf1 {[%clk 0:02:35]}  Qa5 {[%clk 0:02:22]} 18. Qc2 {[%clk 0:02:33]}  Bg5 {[%clk 0:02:19]} 19. Rce1 {[%clk 0:02:22]}  Rfe8 {[%clk 0:01:31]} 20. Kh1 {[%clk 0:02:19]}  f6 {[%clk 0:01:28]} 21. Ne4 {[%clk 0:02:01]}  Bd5 {[%clk 0:01:17]} 22. Nxg5 {[%clk 0:01:50]}  Bxg2+ {[%clk 0:01:17]} 23. Qxg2 {[%clk 0:01:50]}  Qxg5 {[%clk 0:01:18]} 24. Rf3 {[%clk 0:01:49]}  Re4 {[%clk 0:01:15]} 25. Re2 {[%clk 0:01:33]}  Rde8 {[%clk 0:01:04]} 26. Qf2 {[%clk 0:01:29]}  c5 {[%clk 0:00:46]} 27. dxc5 {[%clk 0:01:20]}  Qxc5 {[%clk 0:00:47]} 28. Kg2 {[%clk 0:01:19]}  h6 {[%clk 0:00:43]} 29. h3 {[%clk 0:01:19]}  a6 {[%clk 0:00:34]} 30. g4 {[%clk 0:01:19]}  b5 {[%clk 0:00:34]} 31. Qe1 {[%clk 0:01:11]}  Qe5 {[%clk 0:00:33]} 32. Qd2 {[%clk 0:01:10]}  h5 {[%clk 0:00:32]} 33. gxh5 {[%clk 0:01:06]}  Qxh5 {[%clk 0:00:31]} 34. Rg3 {[%clk 0:01:06]}  Kh8 {[%clk 0:00:25]} 35. Re1 {[%clk 0:01:02]}  Qe5 {[%clk 0:00:23]} 36. Qd7 {[%clk 0:00:59]}  Re7 {[%clk 0:00:22]} 37. Qd8+ {[%clk 0:00:59]}  Kh7 {[%clk 0:00:22]} 38. Qd3 {[%clk 0:00:59]}  Kh6 {[%clk 0:00:20]} 39. Re2 {[%clk 0:00:57]}  f5 {[%clk 0:00:18]} 40. Rf3 {[%clk 0:00:56]}  g6 {[%clk 0:00:16]} 41. Rg3 {[%clk 0:00:48]}  Rd4 {[%clk 0:00:15]} 42. Qxd4 {[%clk 0:00:43]}  Qxd4 {[%clk 0:00:15]} 43. exd4 {[%clk 0:00:43]}  Rxe2+ {[%clk 0:00:16]} 44. Kf1 {[%clk 0:00:40]}  Rxa2 {[%clk 0:00:16]} 45. Rc3 {[%clk 0:00:41]}  Rd2 {[%clk 0:00:16]} 46. Rc6 {[%clk 0:00:40]}  Rxd4 {[%clk 0:00:17]} 47. Rxa6 {[%clk 0:00:41]}  Rb4 {[%clk 0:00:17]} 48. Rb6 {[%clk 0:00:40]}  Rxb3 {[%clk 0:00:17]} 49. Kg2 {[%clk 0:00:41]}  Kg5 {[%clk 0:00:18]} 50. Kh2 {[%clk 0:00:41]}  f4 {[%clk 0:00:18]} 51. Kg2 {[%clk 0:00:41]}  Rb2+ {[%clk 0:00:18]} 52. Kf3 {[%clk 0:00:41]}  Rb3+ {[%clk 0:00:18]} 53. Kf2 {[%clk 0:00:40]}  Kh5 {[%clk 0:00:18]} 54. Kg2 {[%clk 0:00:40]}  g5 {[%clk 0:00:18]} 55. Kf2 {[%clk 0:00:40]}  Kh4 {[%clk 0:00:19]} 56. Kg2 {[%clk 0:00:40]}  Rb2+ {[%clk 0:00:19]} 57. Kf3 {[%clk 0:00:40]}  Rb3+ {[%clk 0:00:19]} 58. Kg2 {[%clk 0:00:40]}  b4 {[%clk 0:00:19]} 59. Rb5 {[%clk 0:00:40]}  Rb2+ {[%clk 0:00:19]} 60. Kf3 {[%clk 0:00:39]}  b3 {[%clk 0:00:18]} 61. Rb6 {[%clk 0:00:39]}  Kh5 {[%clk 0:00:17]} 62. Rb7 {[%clk 0:00:39]}  Rb1 {[%clk 0:00:17]} 63. Rh7+ {[%clk 0:00:38]}  Kg6 {[%clk 0:00:18]} 64. Rb7 {[%clk 0:00:39]}  b2 {[%clk 0:00:18]} 65. Kg2 {[%clk 0:00:40]}  Kf5 {[%clk 0:00:17]} 66. Kh2 {[%clk 0:00:38]}  Ke4 {[%clk 0:00:17]} 67. Kg2 {[%clk 0:00:38]}  f3+ {[%clk 0:00:17]} 68. Kh2 {[%clk 0:00:37]}  Ke3 {[%clk 0:00:17]} 69. Rb4 {[%clk 0:00:38]}  Kf2 {[%clk 0:00:16]} 70. Rb3 {[%clk 0:00:38]}  Re1 {[%clk 0:00:15]} 71. h4 {[%clk 0:00:38]}  b1=Q {[%clk 0:00:14]} 72. Rxb1 {[%clk 0:00:37]}  Rxb1 {[%clk 0:00:15]} 73. hxg5 {[%clk 0:00:38]}  Rg1 {[%clk 0:00:15]} 74. g6 {[%clk 0:00:37]}  Rxg6 {[%clk 0:00:15]} 75. Kh3 {[%clk 0:00:37]}  Ke3 {[%clk 0:00:16]} 76. Kh4 {[%clk 0:00:38]}  f2 {[%clk 0:00:16]} 77. Kh5 {[%clk 0:00:39]}  Rg8 {[%clk 0:00:17]} 78. Kh6 {[%clk 0:00:39]}  f1=Q {[%clk 0:00:17]} 79. Kh7 {[%clk 0:00:39]}  Rg2 {[%clk 0:00:17]} 0-1


[Site "https://www.chess.com"]

[Event "Titled Tuesday Blitz April 26 Early 2022"]
[White "Nazari, Arad"]
[Black "Sanchez Alvares, Kelvin Antonio"]
[WhiteFideId "12577324"]
[BlackFideId "3906680"]
[WhiteElo "2129"]
[BlackElo "2193"]
[Result "1-0"]
[Round "06"]
[TimeControl "180+1"]
[Date "2022.04.26"]
[WhiteClock "0:00:12"]
[BlackClock "0:00:03"]

1. e4 {[%clk 0:03:00]}  c5 {[%clk 0:02:59]} 2. Nf3 {[%clk 0:02:59]}  e6 {[%clk 0:02:59]} 3. d4 {[%clk 0:02:59]}  cxd4 {[%clk 0:03:00]} 4. c3 {[%clk 0:03:00]}  dxc3 {[%clk 0:03:00]} 5. Nxc3 {[%clk 0:03:00]}  a6 {[%clk 0:03:00]} 6. Bc4 {[%clk 0:02:57]}  b5 {[%clk 0:03:00]} 7. Bb3 {[%clk 0:02:57]}  Bb7 {[%clk 0:03:00]} 8. O-O {[%clk 0:02:49]}  d6 {[%clk 0:03:00]} 9. Qe2 {[%clk 0:02:45]}  Nd7 {[%clk 0:02:59]} 10. Bf4 {[%clk 0:02:34]}  Ngf6 {[%clk 0:02:59]} 11. Rfd1 {[%clk 0:02:32]}  b4 {[%clk 0:02:58]} 12. e5 {[%clk 0:02:21]}  bxc3 {[%clk 0:02:37]} 13. exf6 {[%clk 0:02:20]}  cxb2 {[%clk 0:02:36]} 14. Qxb2 {[%clk 0:01:44]}  Qxf6 {[%clk 0:02:20]} 15. Qd2 {[%clk 0:01:43]}  Bxf3 {[%clk 0:02:12]} 16. gxf3 {[%clk 0:01:41]}  e5 {[%clk 0:01:11]} 17. Bg5 {[%clk 0:01:14]}  Qg6 {[%clk 0:00:53]} 18. Bc2 {[%clk 0:01:07]}  f5 {[%clk 0:00:41]} 19. Kh1 {[%clk 0:00:45]}  Be7 {[%clk 0:00:37]} 20. Rg1 {[%clk 0:00:42]}  Qf7 {[%clk 0:00:23]} 21. Bb3 {[%clk 0:00:35]}  Qh5 {[%clk 0:00:19]} 22. Bxe7 {[%clk 0:00:19]}  Qxf3+ {[%clk 0:00:18]} 23. Rg2 {[%clk 0:00:19]}  Kxe7 {[%clk 0:00:15]} 24. Bd5 {[%clk 0:00:20]}  e4 {[%clk 0:00:13]} 25. Qg5+ {[%clk 0:00:20]}  Ke8 {[%clk 0:00:10]} 26. Qxg7 {[%clk 0:00:20]}  Rf8 {[%clk 0:00:07]} 27. Bxa8 {[%clk 0:00:20]}  Ne5 {[%clk 0:00:05]} 28. Rc1 {[%clk 0:00:18]}  Rf7 {[%clk 0:00:04]} 29. Qg8+ {[%clk 0:00:15]}  Kd7 {[%clk 0:00:04]} 30. Bd5 {[%clk 0:00:12]}  Re7 {[%clk 0:00:03]} 31. Qc8# {[%clk 0:00:12]} 1-0


[Site "https://www.chess.com"]

[Event "Titled Tuesday Blitz April 26 Early 2022"]
[White "Nguyen, Hong Anh"]
[Black "Vasquez Schroeder, Rodrigo"]
[WhiteFideId "12406732"]
[BlackFideId "3400042"]
[WhiteElo "2016"]
[BlackElo "2561"]
[Result "0-1"]
[Round "06"]
[TimeControl "180+1"]
[Date "2022.04.26"]
[WhiteClock "0:01:40"]
[BlackClock "0:02:24"]

1. d4 {[%clk 0:03:00]}  d5 {[%clk 0:02:57]} 2. c4 {[%clk 0:03:00]}  c6 {[%clk 0:02:56]} 3. Nf3 {[%clk 0:02:59]}  Nf6 {[%clk 0:02:56]} 4. Qc2 {[%clk 0:02:59]}  dxc4 {[%clk 0:02:56]} 5. Qxc4 {[%clk 0:02:59]}  Bg4 {[%clk 0:02:56]} 6. Nbd2 {[%clk 0:02:58]}  Nbd7 {[%clk 0:02:56]} 7. g3 {[%clk 0:02:58]}  e6 {[%clk 0:02:56]} 8. Bg2 {[%clk 0:02:58]}  Bh5 {[%clk 0:02:56]} 9. O-O {[%clk 0:02:59]}  Be7 {[%clk 0:02:57]} 10. Re1 {[%clk 0:02:56]}  O-O {[%clk 0:02:56]} 11. e4 {[%clk 0:02:56]}  Rc8 {[%clk 0:02:56]} 12. Qb3 {[%clk 0:02:55]}  b5 {[%clk 0:02:56]} 13. a4 {[%clk 0:02:53]}  b4 {[%clk 0:02:52]} 14. Nc4 {[%clk 0:02:51]}  c5 {[%clk 0:02:53]} 15. Bf4 {[%clk 0:02:34]}  Bxf3 {[%clk 0:02:45]} 16. Bxf3 {[%clk 0:02:32]}  cxd4 {[%clk 0:02:45]} 17. Nd6 {[%clk 0:02:25]}  Nc5 {[%clk 0:02:43]} 18. Qd1 {[%clk 0:02:16]}  Bxd6 {[%clk 0:02:39]} 19. e5 {[%clk 0:02:16]}  Be7 {[%clk 0:02:36]} 20. exf6 {[%clk 0:02:15]}  Bxf6 {[%clk 0:02:36]} 21. Rc1 {[%clk 0:02:13]}  d3 {[%clk 0:02:33]} 22. Rc4 {[%clk 0:02:08]}  Bxb2 {[%clk 0:02:29]} 23. Be5 {[%clk 0:01:48]}  Bxe5 {[%clk 0:02:28]} 24. Rxe5 {[%clk 0:01:47]}  Qd6 {[%clk 0:02:28]} 25. Re3 {[%clk 0:01:40]}  a5 {[%clk 0:02:24]} 0-1


[Site "https://www.chess.com"]

[Event "Titled Tuesday Blitz April 26 Early 2022"]
[White "Nurmanova, Alua"]
[Black "Pham, Tran Gia Phuc"]
[WhiteFideId "13729390"]
[BlackFideId "12415669"]
[WhiteElo "1905"]
[BlackElo "1789"]
[Result "1-0"]
[Round "06"]
[TimeControl "180+1"]
[Date "2022.04.26"]
[WhiteClock "0:00:39"]
[BlackClock "0:00:01"]

1. e4 {[%clk 0:03:00]}  c5 {[%clk 0:02:42]} 2. Nf3 {[%clk 0:02:59]}  Nc6 {[%clk 0:02:38]} 3. d4 {[%clk 0:02:57]}  cxd4 {[%clk 0:02:35]} 4. Nxd4 {[%clk 0:02:58]}  Nf6 {[%clk 0:02:32]} 5. Nc3 {[%clk 0:02:56]}  e5 {[%clk 0:02:32]} 6. Ndb5 {[%clk 0:02:55]}  d6 {[%clk 0:02:28]} 7. Bg5 {[%clk 0:02:54]}  a6 {[%clk 0:02:24]} 8. Na3 {[%clk 0:02:53]}  b5 {[%clk 0:02:23]} 9. Bxf6 {[%clk 0:02:53]}  gxf6 {[%clk 0:02:19]} 10. Nd5 {[%clk 0:02:52]}  f5 {[%clk 0:02:14]} 11. Bd3 {[%clk 0:02:46]}  Be6 {[%clk 0:02:10]} 12. O-O {[%clk 0:02:44]}  Bg7 {[%clk 0:02:07]} 13. Qh5 {[%clk 0:02:42]}  f4 {[%clk 0:02:03]} 14. c4 {[%clk 0:02:39]}  b4 {[%clk 0:02:01]} 15. Nc2 {[%clk 0:02:39]}  a5 {[%clk 0:02:00]} 16. g3 {[%clk 0:02:19]}  fxg3 {[%clk 0:01:58]} 17. fxg3 {[%clk 0:02:18]}  O-O {[%clk 0:01:57]} 18. Nce3 {[%clk 0:02:06]}  Nd4 {[%clk 0:01:47]} 19. Nf5 {[%clk 0:01:53]}  Bxf5 {[%clk 0:01:44]} 20. exf5 {[%clk 0:01:52]}  Bf6 {[%clk 0:01:41]} 21. Be4 {[%clk 0:01:43]}  Kh8 {[%clk 0:01:35]} 22. h4 {[%clk 0:01:30]}  Rc8 {[%clk 0:01:34]} 23. b3 {[%clk 0:01:26]}  Rc5 {[%clk 0:01:04]} 24. Kh2 {[%clk 0:01:20]}  a4 {[%clk 0:00:53]} 25. Rab1 {[%clk 0:01:03]}  axb3 {[%clk 0:00:52]} 26. axb3 {[%clk 0:01:04]}  Ra5 {[%clk 0:00:36]} 27. Rf2 {[%clk 0:00:54]}  Rg8 {[%clk 0:00:30]} 28. Qxf7 {[%clk 0:00:50]}  Rf8 {[%clk 0:00:07]} 29. Qh5 {[%clk 0:00:49]}  Ra7 {[%clk 0:00:06]} 30. Kh3 {[%clk 0:00:44]}  Rg7 {[%clk 0:00:03]} 31. g4 {[%clk 0:00:40]}  Rfg8 {[%clk 0:00:03]} 32. Rg2 {[%clk 0:00:39]}  Rg5 {[%clk 0:00:01]} 33. hxg5 {[%clk 0:00:38]}  Rxg5 {[%clk 0:00:01]} 34. Qh6 {[%clk 0:00:39]} 1-0


[Site "https://www.chess.com"]

[Event "Titled Tuesday Blitz April 26 Early 2022"]
[White "Padmini, Rout"]
[Black "Vakhlamov, Igor L."]
[WhiteFideId "5029295"]
[BlackFideId "24126748"]
[WhiteElo "2528"]
[BlackElo "2779"]
[Result "0-1"]
[Round "06"]
[TimeControl "180+1"]
[Date "2022.04.26"]
[WhiteClock "0:00:49"]
[BlackClock "0:01:51"]

1. Nf3 {[%clk 0:03:00]}  Nf6 {[%clk 0:02:54]} 2. g3 {[%clk 0:03:00]}  g6 {[%clk 0:02:53]} 3. Bg2 {[%clk 0:03:00]}  Bg7 {[%clk 0:02:54]} 4. O-O {[%clk 0:03:01]}  O-O {[%clk 0:02:54]} 5. d4 {[%clk 0:03:01]}  c5 {[%clk 0:02:55]} 6. c3 {[%clk 0:02:49]}  b6 {[%clk 0:02:54]} 7. dxc5 {[%clk 0:02:42]}  bxc5 {[%clk 0:02:53]} 8. Be3 {[%clk 0:02:36]}  Na6 {[%clk 0:02:40]} 9. Nbd2 {[%clk 0:02:33]}  Rb8 {[%clk 0:02:38]} 10. Nb3 {[%clk 0:02:25]}  d6 {[%clk 0:02:27]} 11. h3 {[%clk 0:02:25]}  Be6 {[%clk 0:02:23]} 12. Qd2 {[%clk 0:02:18]}  Nc7 {[%clk 0:02:21]} 13. Bh6 {[%clk 0:02:10]}  Bxb3 {[%clk 0:02:07]} 14. axb3 {[%clk 0:02:09]}  Rxb3 {[%clk 0:02:08]} 15. Bxg7 {[%clk 0:02:06]}  Kxg7 {[%clk 0:02:09]} 16. Rxa7 {[%clk 0:02:06]}  Qb8 {[%clk 0:02:09]} 17. Ra2 {[%clk 0:02:05]}  Qb5 {[%clk 0:02:07]} 18. Rfa1 {[%clk 0:02:02]}  Rb8 {[%clk 0:02:06]} 19. Rb1 {[%clk 0:01:40]}  Ncd5 {[%clk 0:01:52]} 20. Rba1 {[%clk 0:00:50]}  Rxb2 {[%clk 0:01:51]} 21. Rxb2 {[%clk 0:00:51]}  Qxb2 {[%clk 0:01:52]} 22. Qd3 {[%clk 0:00:49]}  Qxa1+ {[%clk 0:01:51]} 0-1


[Site "https://www.chess.com"]

[Event "Titled Tuesday Blitz April 26 Early 2022"]
[White "Palacio,Igor Da Paz"]
[Black "Ezat, Mohamed"]
[WhiteFideId "2121140"]
[BlackFideId "10600906"]
[WhiteElo "2144"]
[BlackElo "2386"]
[Result "0-1"]
[Round "06"]
[TimeControl "180+1"]
[Date "2022.04.26"]
[WhiteClock "0:00:01"]
[BlackClock "0:00:53"]

1. e4 {[%clk 0:01:09]}  d5 {[%clk 0:02:07]} 2. Nc3 {[%clk 0:01:10]}  d4 {[%clk 0:02:05]} 3. Nce2 {[%clk 0:01:08]}  c5 {[%clk 0:02:05]} 4. d3 {[%clk 0:01:08]}  Nc6 {[%clk 0:02:05]} 5. g3 {[%clk 0:01:07]}  e5 {[%clk 0:02:06]} 6. Bh3 {[%clk 0:01:05]}  h5 {[%clk 0:02:06]} 7. Bxc8 {[%clk 0:01:03]}  Rxc8 {[%clk 0:02:06]} 8. Nf3 {[%clk 0:00:59]}  Be7 {[%clk 0:02:02]} 9. h4 {[%clk 0:00:54]}  Nf6 {[%clk 0:02:01]} 10. Nd2 {[%clk 0:00:53]}  Ng4 {[%clk 0:01:59]} 11. a4 {[%clk 0:00:50]}  g5 {[%clk 0:01:59]} 12. hxg5 {[%clk 0:00:47]}  Bxg5 {[%clk 0:01:58]} 13. Nc4 {[%clk 0:00:40]}  Bxc1 {[%clk 0:01:44]} 14. Nxc1 {[%clk 0:00:24]}  Qf6 {[%clk 0:01:37]} 15. f3 {[%clk 0:00:18]}  Ne3 {[%clk 0:01:35]} 16. Nxe3 {[%clk 0:00:17]}  dxe3 {[%clk 0:01:21]} 17. c3 {[%clk 0:00:17]}  Nd8 {[%clk 0:01:08]} 18. Qe2 {[%clk 0:00:17]}  Qg5 {[%clk 0:01:06]} 19. g4 {[%clk 0:00:08]}  Ne6 {[%clk 0:01:04]} 20. Rxh5 {[%clk 0:00:05]}  Rxh5 {[%clk 0:01:04]} 21. gxh5 {[%clk 0:00:06]}  Nf4 {[%clk 0:01:05]} 22. Qh2 {[%clk 0:00:02]}  c4 {[%clk 0:01:01]} 23. d4 {[%clk 0:00:01]}  exd4 {[%clk 0:00:59]} 24. cxd4 {[%clk 0:00:02]}  c3 {[%clk 0:00:58]} 25. bxc3 {[%clk 0:00:02]}  Rxc3 {[%clk 0:00:58]} 26. Ne2 {[%clk 0:00:02]}  Rc2 {[%clk 0:00:58]} 27. Qxf4 {[%clk 0:00:02]}  Rxe2+ {[%clk 0:00:56]} 28. Kxe2 {[%clk 0:00:02]}  Qxf4 {[%clk 0:00:57]} 29. Rh1 {[%clk 0:00:02]}  Qg3 {[%clk 0:00:55]} 30. Kxe3 {[%clk 0:00:01]}  Qg2 {[%clk 0:00:54]} 31. Rh4 {[%clk 0:00:01]}  Qg5+ {[%clk 0:00:54]} 32. Rf4 {[%clk 0:00:01]}  Qxh5 {[%clk 0:00:53]} 33. e5 {[%clk 0:00:01]}  Qh2 {[%clk 0:00:53]} 0-1


[Site "https://www.chess.com"]

[Event "Titled Tuesday Blitz April 26 Early 2022"]
[White "Prohorov, Olexandr"]
[Black "Jakubowski, Krzysztof"]
[WhiteFideId "14105578"]
[BlackFideId "1112848"]
[WhiteElo "1993"]
[BlackElo "2365"]
[Result "0-1"]
[Round "06"]
[TimeControl "180+1"]
[Date "2022.04.26"]
[WhiteClock "0:00:07"]
[BlackClock "0:00:09"]

1. d4 {[%clk 0:03:00]}  Nf6 {[%clk 0:02:57]} 2. c4 {[%clk 0:02:58]}  e6 {[%clk 0:02:57]} 3. Nc3 {[%clk 0:02:55]}  Bb4 {[%clk 0:02:57]} 4. f3 {[%clk 0:02:55]}  c5 {[%clk 0:02:56]} 5. d5 {[%clk 0:02:54]}  O-O {[%clk 0:02:52]} 6. e4 {[%clk 0:02:54]}  b5 {[%clk 0:02:50]} 7. Nh3 {[%clk 0:02:42]}  bxc4 {[%clk 0:02:35]} 8. Bxc4 {[%clk 0:02:27]}  exd5 {[%clk 0:02:34]} 9. Bxd5 {[%clk 0:02:24]}  Nxd5 {[%clk 0:02:33]} 10. Qxd5 {[%clk 0:02:23]}  Nc6 {[%clk 0:02:29]} 11. O-O {[%clk 0:02:23]}  Ba6 {[%clk 0:02:21]} 12. Rd1 {[%clk 0:02:22]}  Nd4 {[%clk 0:02:18]} 13. Bg5 {[%clk 0:02:13]}  Qa5 {[%clk 0:02:07]} 14. Kh1 {[%clk 0:01:52]}  h6 {[%clk 0:01:50]} 15. Bd2 {[%clk 0:01:42]}  Qc7 {[%clk 0:01:08]} 16. a3 {[%clk 0:01:34]}  Ba5 {[%clk 0:00:59]} 17. Rac1 {[%clk 0:01:25]}  d6 {[%clk 0:00:50]} 18. Qa2 {[%clk 0:01:16]}  Qd7 {[%clk 0:00:43]} 19. Be3 {[%clk 0:01:08]}  Nxf3 {[%clk 0:00:34]} 20. Bxc5 {[%clk 0:00:56]}  Bc7 {[%clk 0:00:33]} 21. Nd5 {[%clk 0:00:29]}  Bb8 {[%clk 0:00:28]} 22. Bb4 {[%clk 0:00:28]}  Be2 {[%clk 0:00:25]} 23. Qb3 {[%clk 0:00:24]}  Bxd1 {[%clk 0:00:23]} 24. Rxd1 {[%clk 0:00:25]}  Ne5 {[%clk 0:00:21]} 25. Nhf4 {[%clk 0:00:24]}  a5 {[%clk 0:00:20]} 26. Bc3 {[%clk 0:00:22]}  Qg4 {[%clk 0:00:18]} 27. h3 {[%clk 0:00:21]}  Qh4 {[%clk 0:00:15]} 28. Qb7 {[%clk 0:00:20]}  Ra7 {[%clk 0:00:14]} 29. Qb5 {[%clk 0:00:17]}  Ng4 {[%clk 0:00:09]} 30. Rf1 {[%clk 0:00:15]}  Nf2+ {[%clk 0:00:08]} 31. Kg1 {[%clk 0:00:15]}  Nxe4 {[%clk 0:00:08]} 32. Bd4 {[%clk 0:00:15]}  Ng5 {[%clk 0:00:07]} 33. Bxa7 {[%clk 0:00:13]}  Bxa7+ {[%clk 0:00:08]} 34. Kh1 {[%clk 0:00:14]}  Ne4 {[%clk 0:00:08]} 35. Kh2 {[%clk 0:00:12]}  Qg3+ {[%clk 0:00:08]} 36. Kh1 {[%clk 0:00:12]}  Nf2+ {[%clk 0:00:09]} 37. Kg1 {[%clk 0:00:07]}  Nxh3+ {[%clk 0:00:08]} 38. Kh1 {[%clk 0:00:07]}  Nf2+ {[%clk 0:00:09]} 39. Kg1 {[%clk 0:00:08]}  Ng4+ {[%clk 0:00:09]} 40. Kh1 {[%clk 0:00:07]}  Qh2# {[%clk 0:00:09]} 0-1


[Site "https://www.chess.com"]

[Event "Titled Tuesday Blitz April 26 Early 2022"]
[White "Przybylski, Wojciech"]
[Black "Sovetbekova, Nurai"]
[WhiteFideId "1117599"]
[BlackFideId "13801910"]
[WhiteElo "2133"]
[BlackElo "1538"]
[Result "0-1"]
[Round "06"]
[TimeControl "180+1"]
[Date "2022.04.26"]
[WhiteClock "0:00:11"]
[BlackClock "0:00:09"]

1. d4 {[%clk 0:03:00]}  Nf6 {[%clk 0:02:59]} 2. c4 {[%clk 0:02:49]}  g6 {[%clk 0:02:58]} 3. Nc3 {[%clk 0:02:45]}  d5 {[%clk 0:02:58]} 4. Nf3 {[%clk 0:02:23]}  Bg7 {[%clk 0:02:57]} 5. Qb3 {[%clk 0:02:20]}  dxc4 {[%clk 0:02:48]} 6. Qxc4 {[%clk 0:02:19]}  O-O {[%clk 0:02:47]} 7. e4 {[%clk 0:02:17]}  a6 {[%clk 0:02:28]} 8. Be2 {[%clk 0:02:17]}  b5 {[%clk 0:02:28]} 9. Qb3 {[%clk 0:02:15]}  c5 {[%clk 0:02:25]} 10. e5 {[%clk 0:01:52]}  Be6 {[%clk 0:01:53]} 11. exf6 {[%clk 0:01:22]}  Bxb3 {[%clk 0:01:50]} 12. fxg7 {[%clk 0:01:22]}  Kxg7 {[%clk 0:01:51]} 13. axb3 {[%clk 0:01:21]}  cxd4 {[%clk 0:01:48]} 14. Ne4 {[%clk 0:01:21]}  Qd5 {[%clk 0:01:41]} 15. Ng3 {[%clk 0:01:10]}  Nc6 {[%clk 0:01:22]} 16. O-O {[%clk 0:01:09]}  e5 {[%clk 0:01:20]} 17. Nd2 {[%clk 0:01:00]}  f5 {[%clk 0:01:16]} 18. Rd1 {[%clk 0:00:58]}  Rfd8 {[%clk 0:01:07]} 19. h4 {[%clk 0:00:45]}  d3 {[%clk 0:00:50]} 20. Bf3 {[%clk 0:00:35]}  e4 {[%clk 0:00:50]} 21. Ndxe4 {[%clk 0:00:33]}  fxe4 {[%clk 0:00:49]} 22. Bxe4 {[%clk 0:00:34]}  Qxb3 {[%clk 0:00:45]} 23. Bg5 {[%clk 0:00:31]}  Nb4 {[%clk 0:00:27]} 24. h5 {[%clk 0:00:26]}  Rac8 {[%clk 0:00:19]} 25. h6+ {[%clk 0:00:25]}  Kg8 {[%clk 0:00:18]} 26. Rac1 {[%clk 0:00:18]}  Rxc1 {[%clk 0:00:15]} 27. Rxc1 {[%clk 0:00:18]}  d2 {[%clk 0:00:15]} 28. Bxd2 {[%clk 0:00:15]}  Rxd2 {[%clk 0:00:15]} 29. Rc8+ {[%clk 0:00:14]}  Kf7 {[%clk 0:00:14]} 30. Rc7+ {[%clk 0:00:15]}  Kf6 {[%clk 0:00:14]} 31. Rxh7 {[%clk 0:00:15]}  Rd1+ {[%clk 0:00:13]} 32. Kh2 {[%clk 0:00:14]}  Qxb2 {[%clk 0:00:11]} 33. Rh8 {[%clk 0:00:12]}  Kg5 {[%clk 0:00:10]} 34. h7 {[%clk 0:00:11]}  Qxh8 {[%clk 0:00:09]} 35. f4+ {[%clk 0:00:10]}  Kxf4 {[%clk 0:00:07]} 36. Bf3 {[%clk 0:00:11]}  Qxh7+ {[%clk 0:00:07]} 37. Nh5+ {[%clk 0:00:11]}  gxh5 {[%clk 0:00:07]} 38. Bxd1 {[%clk 0:00:08]}  Qc7 {[%clk 0:00:07]} 39. Be2 {[%clk 0:00:08]}  Ke3+ {[%clk 0:00:07]} 40. Kh3 {[%clk 0:00:07]}  Kxe2 {[%clk 0:00:07]} 41. Kh4 {[%clk 0:00:07]}  Qg7 {[%clk 0:00:07]} 42. Kxh5 {[%clk 0:00:06]}  Qxg2 {[%clk 0:00:07]} 43. Kh6 {[%clk 0:00:07]}  a5 {[%clk 0:00:05]} 44. Kh7 {[%clk 0:00:08]}  a4 {[%clk 0:00:06]} 45. Kh8 {[%clk 0:00:09]}  a3 {[%clk 0:00:07]} 46. Kh7 {[%clk 0:00:10]}  a2 {[%clk 0:00:08]} 47. Kh6 {[%clk 0:00:11]}  a1=Q {[%clk 0:00:09]} 48. Kh7 {[%clk 0:00:11]}  Qag7# {[%clk 0:00:09]} 0-1


[Site "https://www.chess.com"]

[Event "Titled Tuesday Blitz April 26 Early 2022"]
[White "Riehle, Marco"]
[Black "Molina, Roberto Junio Brito"]
[WhiteFideId "12904392"]
[BlackFideId "2109450"]
[WhiteElo "2551"]
[BlackElo "2824"]
[Result "1-0"]
[Round "06"]
[TimeControl "180+1"]
[Date "2022.04.26"]
[WhiteClock "0:00:49"]
[BlackClock "0:00:19"]

1. e4 {[%clk 0:03:00]}  c6 {[%clk 0:02:59]} 2. c4 {[%clk 0:02:59]}  d5 {[%clk 0:02:58]} 3. cxd5 {[%clk 0:03:00]}  cxd5 {[%clk 0:02:59]} 4. exd5 {[%clk 0:03:01]}  Nf6 {[%clk 0:02:59]} 5. Nc3 {[%clk 0:03:01]}  Nxd5 {[%clk 0:02:58]} 6. Nf3 {[%clk 0:03:02]}  e6 {[%clk 0:02:58]} 7. d4 {[%clk 0:03:01]}  Be7 {[%clk 0:02:57]} 8. Bd3 {[%clk 0:03:01]}  O-O {[%clk 0:02:57]} 9. O-O {[%clk 0:03:01]}  Nc6 {[%clk 0:02:55]} 10. Re1 {[%clk 0:03:01]}  Nf6 {[%clk 0:02:55]} 11. Bg5 {[%clk 0:02:59]}  b6 {[%clk 0:02:54]} 12. Ne5 {[%clk 0:02:59]}  Nxd4 {[%clk 0:02:45]} 13. Qa4 {[%clk 0:02:24]}  Qd6 {[%clk 0:01:16]} 14. Rad1 {[%clk 0:02:18]}  Qb4 {[%clk 0:01:09]} 15. Bxf6 {[%clk 0:01:28]}  gxf6 {[%clk 0:00:59]} 16. Nc6 {[%clk 0:01:25]}  Nxc6 {[%clk 0:00:45]} 17. Qxc6 {[%clk 0:01:26]}  Rb8 {[%clk 0:00:41]} 18. Qc7 {[%clk 0:01:08]}  Bd6 {[%clk 0:00:30]} 19. Bxh7+ {[%clk 0:01:07]}  Kxh7 {[%clk 0:00:31]} 20. Rxd6 {[%clk 0:01:07]}  Rb7 {[%clk 0:00:30]} 21. Qc6 {[%clk 0:01:02]}  Qc5 {[%clk 0:00:30]} 22. Qe4+ {[%clk 0:00:58]}  Kg7 {[%clk 0:00:27]} 23. Rd3 {[%clk 0:00:50]}  f5 {[%clk 0:00:25]} 24. Rg3+ {[%clk 0:00:48]}  Kf6 {[%clk 0:00:19]} 25. Qh4# {[%clk 0:00:49]} 1-0


[Site "https://www.chess.com"]